bitfinex-derivatives/quotes_BTCF0:USTF0_20240905
["timestamp","ask_amount","ask_price","bid_price","bid_amount"]
[1725540534645,0.00026509,56596.0,56595.0,0.451151]
[1725540535654,0.00726509,56596.0,56595.0,0.451151]
[1725540536148,0.00126509,56596.0,56595.0,0.451151]
[1725540537744,0.00426509,56596.0,56595.0,0.451151]
[1725540540354,0.33061409,56596.0,56595.0,0.002]
[1725540540554,0.69141409,56596.0,56595.0,0.004]
[1725540540749,0.68941409,56596.0,56595.0,0.007]
[1725540540945,0.77776309,56596.0,56595.0,0.007]
[1725540541156,0.77776309,56596.0,56595.0,0.005]
[1725540541358,0.77776309,56596.0,56595.0,0.007]
[1725540541851,0.77776309,56596.0,56595.0,0.004]
[1725540542051,0.41896309,56596.0,56595.0,0.004]
[1725540542659,0.42596309,56596.0,56595.0,0.005]
[1725540542956,1.55604309,56596.0,56595.0,0.005]
[1725540543156,1.74224309,56596.0,56595.0,0.005]
[1725540543460,1.74224309,56596.0,56595.0,0.003]
[1725540543461,1.81224309,56596.0,56595.0,0.003]
[1725540543654,1.82024309,56596.0,56595.0,0.004]
[1725540543864,0.088357,56591.0,56588.0,0.3608]
[1725540544048,0.09036,56589.0,56588.0,0.3608]
[1725540544252,0.002,56589.0,56588.0,0.449162]
[1725540545260,0.003,56589.0,56588.0,0.449162]
[1725540546153,0.003,56589.0,56588.0,1.579322]
[1725540546754,0.004,56589.0,56588.0,1.579322]
[1725540547557,0.004,56589.0,56588.0,1.585322]
[1725540547962,0.004,56589.0,56588.0,1.673684]
[1725540548265,0.003,56589.0,56588.0,1.68546074]
[1725540548454,0.003,56589.0,56588.0,1.68746074]
[1725540548762,0.003,56589.0,56588.0,1.68246074]
[1725540548966,0.004,56589.0,56588.0,1.69046074]
[1725540549760,0.004,56589.0,56588.0,1.69246074]
[1725540550163,0.003,56589.0,56588.0,1.68446074]
[1725540550461,0.004,56589.0,56588.0,1.69046074]
[1725540551073,0.004,56589.0,56588.0,1.69246074]
[1725540551462,0.004,56589.0,56588.0,1.69046074]
[1725540551463,0.003,56589.0,56588.0,1.69046074]
[1725540551856,0.00026509,56596.0,56595.0,0.088351]
[1725540552055,0.00026509,56596.0,56595.0,1.235051]
[1725540552361,0.00026509,56596.0,56595.0,1.853482]
[1725540552751,0.088331,56608.0,56599.0,0.088344]
[1725540552957,0.088331,56608.0,56607.0,0.3628]
[1725540553951,0.25951627,56613.0,56612.0,0.088324]
[1725540554160,0.00724976,56613.0,56612.0,0.451124]
[1725540554659,0.00026509,56613.0,56612.0,0.451124]
[1725540554855,0.00026509,56613.0,56612.0,0.691124]
[1725540555367,0.01226509,56613.0,56612.0,0.452124]
[1725540555661,0.01326509,56613.0,56612.0,0.453124]
[1725540555853,0.10108279,56613.0,56612.0,0.693124]
[1725540556050,0.01326509,56613.0,56612.0,0.693124]
[1725540562862,0.01326509,56613.0,56612.0,0.453124]
[1725540563058,0.25326509,56613.0,56612.0,0.3648]
[1725540563359,0.34158809,56613.0,56612.0,0.3648]
[1725540563767,1.55983109,56613.0,56612.0,0.3648]
[1725540564362,0.87150809,56613.0,56612.0,0.3648]
[1725540564562,0.34855577,56613.0,56612.0,0.3648]
[1725540566262,0.79767877,56613.0,56612.0,0.004]
[1725540566462,0.088332,56607.0,56597.0,0.088347]
[1725540566662,0.090342,56601.0,56598.0,0.088346]
[1725540567563,0.090342,56601.0,56600.0,0.3618]
[1725540569372,0.090342,56601.0,56600.0,0.3608]
[1725540569571,0.090342,56601.0,56600.0,0.3618]
[1725540570274,0.09717966,56601.0,56600.0,0.3618]
[1725540571369,0.090342,56601.0,56600.0,0.3618]
[1725540572280,0.17818455,56601.0,56600.0,0.3618]
[1725540572576,0.090342,56601.0,56600.0,0.3618]
[1725540572766,0.090342,56601.0,56600.0,0.450143]
[1725540574067,0.17819704,56601.0,56600.0,0.450143]
[1725540575076,0.08985504,56601.0,56600.0,0.450143]
[1725540575279,0.002,56601.0,56600.0,0.450143]
[1725540575775,0.08990386,56601.0,56600.0,0.450143]
[1725540575981,0.0899015,56601.0,56600.0,0.450143]
[1725540576575,0.002,56601.0,56600.0,0.450143]
[1725540577778,0.08993517,56601.0,56600.0,0.450143]
[1725540577972,0.002,56601.0,56600.0,0.450143]
[1725540578172,0.002,56601.0,56600.0,0.538486]
[1725540578870,0.002,56601.0,56600.0,1.668526]
[1725540579076,0.002,56601.0,56600.0,1.72129073]
[1725540579280,0.002,56601.0,56600.0,1.668526]
[1725540580074,0.00026509,56613.0,56600.0,1.580183]
[1725540580276,0.00026509,56613.0,56612.0,0.451124]
[1725540580679,0.08858809,56613.0,56612.0,0.451124]
[1725540581280,0.08858809,56613.0,56612.0,0.691124]
[1725540581884,0.00126509,56613.0,56612.0,0.692124]
[1725540583081,0.01026509,56613.0,56612.0,0.693124]
[1725540583283,0.01026509,56613.0,56612.0,0.46010104]
[1725540584977,0.01026509,56613.0,56612.0,0.09930104]
[1725540585173,0.01026509,56613.0,56612.0,0.82090104]
[1725540585574,0.09858809,56613.0,56612.0,0.3648]
[1725540585991,0.17596466,56613.0,56612.0,0.3648]
[1725540586280,0.13270869,56613.0,56612.0,0.3648]
[1725540586486,0.17596533,56613.0,56612.0,0.3648]
[1725540587072,0.25586263,56613.0,56612.0,0.3648]
[1725540587488,0.04438569,56613.0,56612.0,0.693124]
[1725540587683,0.11583986,56613.0,56612.0,0.693124]
[1725540588189,0.01026509,56613.0,56612.0,0.693124]
[1725540588780,0.00126509,56613.0,56612.0,0.692124]
[1725540589086,0.00826509,56613.0,56612.0,0.693124]
[1725540589786,0.00126509,56613.0,56612.0,0.696124]
[1725540590492,0.00126509,56613.0,56612.0,0.692124]
[1725540590691,0.00126509,56613.0,56612.0,0.696124]
[1725540592084,0.00126509,56613.0,56612.0,0.692124]
[1725540592280,0.00126509,56613.0,56612.0,0.696124]
[1725540592895,0.00126509,56613.0,56612.0,1.226044]
[1725540593892,0.15797506,56622.0,56621.0,0.08831]
[1725540593893,0.06966506,56622.0,56621.0,0.08831]
[1725540594192,0.06966506,56622.0,56621.0,0.69111]
[1725540595081,0.06966506,56622.0,56621.0,0.45111]
[1725540595279,0.15797406,56622.0,56621.0,0.45111]
[1725540596083,0.15797406,56622.0,56621.0,0.69111]
[1725540596489,0.15897406,56622.0,56621.0,0.69111]
[1725540597189,0.15797406,56622.0,56621.0,0.69111]
[1725540597389,0.15997406,56622.0,56621.0,0.69111]
[1725540597994,0.15997406,56622.0,56621.0,0.69805661]
[1725540599587,0.15997406,56622.0,56621.0,0.33725661]
[1725540599787,0.15997406,56622.0,56621.0,0.69805661]
[1725540600288,0.16097406,56622.0,56621.0,0.3628]
[1725540600701,0.16097406,56622.0,56621.0,0.6028]
[1725540601092,0.23833601,56622.0,56621.0,0.6028]
[1725540601486,0.68744501,56622.0,56621.0,0.002]
[1725540601694,0.088323,56613.0,56611.0,0.36172]
[1725540601992,0.088323,56613.0,56611.0,0.3608]
[1725540601993,0.40768495,56613.0,56611.0,0.3608]
[1725540602194,0.25600795,56613.0,56611.0,0.3608]
[1725540602386,0.16768495,56613.0,56612.0,0.241]
[1725540602586,0.16768495,56613.0,56612.0,0.24]
[1725540602587,0.03711415,56613.0,56612.0,0.24]
[1725540602785,0.03711415,56613.0,56612.0,0.4249]
[1725540602995,0.03711415,56613.0,56612.0,0.4329]
[1725540603185,0.03611415,56613.0,56612.0,0.4409]
[1725540603791,0.03611415,56613.0,56612.0,0.517224]
[1725540604892,0.03611415,56613.0,56612.0,0.691024]
[1725540605396,0.03611415,56613.0,56612.0,0.517224]
[1725540605592,0.03611415,56613.0,56612.0,0.513224]
[1725540605790,0.03611415,56613.0,56612.0,0.517224]
[1725540606198,0.12443715,56613.0,56612.0,0.004]
[1725540606491,0.082324,56612.0,56611.0,0.3608]
[1725540606692,0.29838095,56612.0,56611.0,0.3608]
[1725540606995,0.15768818,56612.0,56611.0,0.3608]
[1725540607293,0.23763554,56612.0,56611.0,0.3608]
[1725540607495,0.23763554,56612.0,56611.0,0.6008]
[1725540607693,0.11443815,56612.0,56611.0,0.6008]
[1725540608104,0.080324,56612.0,56611.0,0.6008]
[1725540608994,0.086324,56612.0,56611.0,0.6008]
[1725540609799,0.087324,56612.0,56611.0,0.6008]
[1725540610386,0.012,56612.0,56611.0,0.74197358]
[1725540610597,0.014,56612.0,56611.0,1.820046]
[1725540610797,0.014,56612.0,56611.0,2.07959897]
[1725540610991,0.014,56612.0,56611.0,1.409246]
[1725540611187,0.014,56612.0,56611.0,0.879326]
[1725540611392,0.014,56612.0,56611.0,0.94987489]
[1725540612292,0.008,56612.0,56611.0,0.882326]
[1725540612899,0.008,56612.0,56611.0,2.100572]
[1725540613193,0.07166506,56622.0,56621.0,0.08831]
[1725540613399,0.07166506,56622.0,56621.0,0.68911]
[1725540613601,0.07166506,56622.0,56621.0,0.69111]
[1725540614396,0.07166506,56622.0,56621.0,1.05191]
[1725540614803,0.07466506,56622.0,56621.0,1.05191]
[1725540615407,0.07466506,56622.0,56621.0,1.12245625]
[1725540616409,0.07766506,56622.0,56621.0,1.12245625]
[1725540616901,0.07766506,56622.0,56621.0,1.74060625]
[1725540617097,0.07766506,56622.0,56621.0,1.65229625]
[1725540617495,0.07766506,56622.0,56621.0,1.58175]
[1725540617699,0.07766506,56622.0,56621.0,1.67006]
[1725540617891,0.07766506,56622.0,56621.0,2.27006]
[1725540618298,0.07766506,56622.0,56621.0,2.34751388]
[1725540618494,0.07766506,56622.0,56621.0,2.27703155]
[1725540619307,0.07766506,56622.0,56621.0,2.25918694]
[1725540619602,0.07766506,56622.0,56621.0,1.58872155]
[1725540619808,0.07766506,56622.0,56621.0,1.05888155]
[1725540620010,0.07766506,56622.0,56621.0,1.58872155]
[1725540620209,0.07766506,56622.0,56621.0,1.05888155]
[1725540620398,0.07766506,56622.0,56621.0,1.67703155]
[1725540620707,0.07766506,56622.0,56621.0,1.74749694]
[1725540620909,0.07466506,56622.0,56621.0,1.74749694]
[1725540621113,0.03149096,56622.0,56621.0,1.66718694]
[1725540621407,0.02849096,56622.0,56621.0,1.69303155]
[1725540621706,0.02849096,56622.0,56621.0,1.07488155]
[1725540622006,0.02849096,56622.0,56621.0,1.13371181]
[1725540622308,0.02849096,56622.0,56621.0,1.08088155]
[1725540622506,0.02749096,56622.0,56621.0,1.07288155]
[1725540622702,0.02849096,56622.0,56621.0,1.07988155]
[1725540623194,0.06259971,56622.0,56621.0,1.07988155]
[1725540623397,0.06159971,56622.0,56621.0,1.07788155]
[1725540623607,0.06159971,56622.0,56621.0,1.06388155]
[1725540623908,0.06159971,56622.0,56621.0,1.07288155]
[1725540624207,0.06159971,56622.0,56621.0,1.05888155]
[1725540624407,0.02749096,56622.0,56621.0,1.05988155]
[1725540624809,0.02749096,56622.0,56621.0,1.05888155]
[1725540626903,0.02749096,56622.0,56621.0,1.06188155]
[1725540627306,0.13268196,56622.0,56621.0,1.92603155]
[1725540627495,0.02749096,56622.0,56621.0,1.68603155]
[1725540627701,0.02749096,56622.0,56621.0,1.15619155]
[1725540627908,0.02749096,56622.0,56621.0,1.68103155]
[1725540628113,0.02749096,56622.0,56621.0,1.69003155]
[1725540628501,0.02749096,56622.0,56621.0,1.68103155]
[1725540628701,0.02749096,56622.0,56621.0,2.29403155]
[1725540628901,0.02749096,56622.0,56621.0,2.38234155]
[1725540629110,0.02749096,56622.0,56621.0,2.29403155]
[1725540629701,0.02749096,56622.0,56621.0,2.38634155]
[1725540629896,0.115135,56622.0,56621.0,2.29803155]
[1725540630111,0.13268196,56622.0,56621.0,1.06688155]
[1725540630304,0.02749096,56622.0,56621.0,1.07988155]
[1725540630509,0.02749096,56622.0,56621.0,1.07188155]
[1725540630704,0.02749096,56622.0,56621.0,1.06988155]
[1725540631010,0.02749096,56622.0,56621.0,1.08288155]
[1725540631317,0.02749096,56622.0,56621.0,1.70103155]
[1725540631507,0.02749096,56622.0,56621.0,1.70203155]
[1725540632318,0.02749096,56622.0,56621.0,1.77249694]
[1725540632717,0.02749096,56622.0,56621.0,1.24265694]
[1725540632903,0.02749096,56622.0,56621.0,1.23165694]
[1725540633103,0.02749096,56622.0,56621.0,1.24365694]
[1725540634916,0.02749096,56622.0,56621.0,1.17319155]
[1725540635211,0.02749096,56622.0,56621.0,1.15534694]
[1725540635419,0.02749096,56622.0,56621.0,1.08488155]
[1725540636711,0.11579996,56622.0,56621.0,0.7496]
[1725540637218,0.11579996,56622.0,56621.0,0.9896]
[1725540637718,0.11579996,56622.0,56621.0,1.07791]
[1725540638419,0.1499115,56622.0,56621.0,1.07791]
[1725540640421,0.0616025,56622.0,56621.0,1.07791]
[1725540641710,0.02749096,56622.0,56621.0,1.16622]
[1725540642416,0.13282064,56622.0,56621.0,1.16622]
[1725540642814,0.02749096,56622.0,56621.0,2.29606]
[1725540643211,0.13282064,56622.0,56621.0,2.29606]
[1725540643410,0.02749096,56622.0,56621.0,2.29606]
[1725540643609,0.13281248,56622.0,56621.0,2.29606]
[1725540644014,0.02749096,56622.0,56621.0,1.07791]
[1725540644218,0.06159925,56622.0,56621.0,1.07791]
[1725540644616,0.02749096,56622.0,56621.0,1.07791]
[1725540649223,0.00026509,56627.0,56626.0,0.088303]
[1725540649418,0.00026509,56627.0,56626.0,0.69771848]
[1725540649609,0.00026509,56627.0,56626.0,0.7943068]
[1725540649815,0.00026509,56627.0,56626.0,0.8826098]
[1725540650715,0.00026509,56627.0,56626.0,0.8023068]
[1725540651115,0.00026509,56627.0,56626.0,0.73171848]
[1725540651311,0.00026509,56627.0,56626.0,0.73771848]
[1725540652022,0.00026509,56627.0,56626.0,0.74449271]
[1725540652231,0.00026509,56627.0,56626.0,1.10529271]
[1725540653028,0.00026509,56627.0,56626.0,1.17588103]
[1725540653228,0.00026509,56627.0,56626.0,1.10529271]
[1725540653422,0.00026509,56627.0,56626.0,1.19359571]
[1725540653617,0.12319739,56635.0,56631.0,0.088294]
[1725540653823,0.1763,56641.0,56631.0,0.088294]
[1725540653824,0.1763,56641.0,56640.0,0.088281]
[1725540654126,0.03410144,56641.0,56640.0,0.693081]
[1725540654424,0.1909,56643.0,56642.0,0.088278]
[1725540654618,0.22499847,56643.0,56642.0,0.453078]
[1725540655719,0.1763,56647.0,56646.0,0.088271]
[1725540655921,0.21039752,56647.0,56646.0,0.332271]
[1725540656329,0.33359491,56647.0,56646.0,0.332271]
[1725540656523,0.25362403,56647.0,56646.0,0.332271]
[1725540657131,0.07732403,56647.0,56646.0,0.694071]
[1725540657326,0.03409752,56647.0,56646.0,0.694071]
[1725540657730,0.00026306,56648.0,56647.0,0.08827]
[1725540657932,0.00026306,56648.0,56647.0,0.09227]
[1725540660135,0.00026306,56648.0,56647.0,0.81387]
[1725540660526,0.08853106,56648.0,56647.0,0.3648]
[1725540660933,0.61813106,56648.0,56647.0,0.3648]
[1725540661126,1.45813106,56648.0,56647.0,0.3648]
[1725540662032,0.08853106,56648.0,56647.0,0.6048]
[1725540662428,1.30639906,56648.0,56647.0,0.004]
[1725540662627,0.176568,56638.0,56637.0,0.00026486]
[1725540662837,0.416568,56638.0,56637.0,0.00026486]
[1725540663032,1.546248,56638.0,56637.0,0.00026486]
[1725540663238,0.946248,56638.0,56637.0,0.00026486]
[1725540663440,1.546248,56638.0,56637.0,0.00026486]
[1725540663827,1.546248,56638.0,56637.0,0.01026486]
[1725540664551,0.176584,56633.0,56632.0,0.3608]
[1725540664845,0.407584,56633.0,56632.0,0.3608]
[1725540665032,1.537304,56633.0,56632.0,0.3608]
[1725540665639,0.849012,56633.0,56632.0,0.3608]
[1725540665941,1.449012,56633.0,56632.0,0.3748]
[1725540666136,1.449012,56633.0,56632.0,0.014]
[1725540666336,0.849012,56633.0,56632.0,0.014]
[1725540666840,1.449012,56633.0,56632.0,0.014]
[1725540667534,0.079292,56633.0,56632.0,0.3748]
[1725540667734,0.080292,56633.0,56632.0,0.6008]
[1725540667943,0.080292,56633.0,56632.0,0.3608]
[1725540668946,0.320292,56633.0,56632.0,0.3608]
[1725540669141,1.450012,56633.0,56632.0,0.3608]
[1725540669331,1.450012,56633.0,56627.0,0.00026486]
[1725540669332,0.088299,56628.0,56627.0,0.00026486]
[1725540670235,0.088295,56631.0,56628.0,0.088299]
[1725540670545,0.088295,56631.0,56630.0,0.242]
[1725540670933,0.00126486,56633.0,56630.0,0.242]
[1725540671138,0.00026486,56633.0,56632.0,0.002]
[1725540671633,0.00026486,56633.0,56632.0,0.090293]
[1725540672035,0.00026486,56633.0,56632.0,0.002]
[1725540672241,0.08855686,56633.0,56632.0,0.002]
[1725540672743,0.08955686,56633.0,56632.0,0.002]
[1725540672940,0.32955686,56633.0,56632.0,0.003]
[1725540675238,0.77864886,56633.0,56632.0,0.003]
[1725540675542,0.77864886,56633.0,56627.0,0.00026486]
[1725540675543,0.176598,56628.0,56627.0,0.00026486]
[1725540675845,0.53901131,56628.0,56627.0,0.00026486]
[1725540676035,1.67077131,56628.0,56627.0,0.00026486]
[1725540676645,0.54101131,56628.0,56627.0,0.00026486]
[1725540676845,0.506897,56628.0,56627.0,0.00026486]
[1725540677345,0.178598,56628.0,56627.0,0.00026486]
[1725540677744,0.178598,56628.0,56627.0,0.01126486]
[1725540678636,0.1853795,56628.0,56627.0,0.01126486]
[1725540679045,0.17785276,56628.0,56627.0,0.01126486]
[1725540679246,0.090299,56628.0,56627.0,0.01126486]
[1725540683044,1.63591176,56628.0,56627.0,0.01126486]
[1725540683348,1.636657,56628.0,56627.0,0.01126486]
[1725540685336,0.948358,56628.0,56627.0,0.01126486]
[1725540685745,1.548358,56628.0,56627.0,0.01126486]
[1725540686167,1.018598,56628.0,56627.0,0.01126486]
[1725540686341,0.418598,56628.0,56627.0,0.01126486]
[1725540686843,1.548358,56628.0,56627.0,0.01126486]
[1725540687846,1.997457,56628.0,56627.0,0.01126486]
[1725540688340,1.99665985,56628.0,56627.0,0.01126486]
[1725540688544,1.309158,56628.0,56627.0,0.01126486]
[1725540688845,2.179657,56628.0,56627.0,0.01126486]
[1725540689049,2.26715885,56628.0,56627.0,0.01126486]
[1725540689248,2.179657,56628.0,56627.0,0.01126486]
[1725540689842,1.579657,56628.0,56627.0,0.01126486]
[1725540690244,2.179657,56628.0,56627.0,0.01126486]
[1725540690642,0.62697145,56628.0,56627.0,0.01126486]
[1725540690845,0.539398,56628.0,56627.0,0.01126486]
[1725540691051,0.178598,56628.0,56627.0,0.01126486]
[1725540692647,0.26617145,56628.0,56627.0,0.01126486]
[1725540692949,1.069158,56628.0,56627.0,0.01126486]
[1725540693148,1.069158,56628.0,56617.0,0.05293568]
[1725540693149,0.264954,56616.0,56611.0,0.05293568]
[1725540693343,1.2048,56616.0,56606.0,0.1871]
[1725540693651,0.416664,56607.0,56606.0,0.1871]
[1725540694154,0.08834,56602.0,56601.0,0.19016486]
[1725540694355,0.32934,56602.0,56601.0,0.19016486]
[1725540694551,0.32834,56602.0,56601.0,0.00026486]
[1725540694859,1.90752,56602.0,56601.0,0.00026486]
[1725540695042,0.088359,56590.0,56586.0,0.23433568]
[1725540695239,0.244,56587.0,56584.0,0.3608]
[1725540695451,0.004,56585.0,56584.0,0.3608]
[1725540695651,0.24,56585.0,56584.0,0.3608]
[1725540695859,0.328367,56585.0,56584.0,0.3608]
[1725540698151,0.090367,56585.0,56584.0,0.3608]
[1725540698353,0.090367,56585.0,56579.0,0.00026486]
[1725540698354,0.088374,56580.0,56579.0,0.00026486]
[1725540698648,0.759174,56580.0,56579.0,0.00026486]
[1725540698850,0.763174,56580.0,56579.0,0.00026486]
[1725540699352,1.981788,56580.0,56579.0,0.00026486]
[1725540700053,1.981788,56580.0,56571.0,0.3608]
[1725540700054,0.088387,56572.0,56571.0,0.3608]
[1725540700259,0.088401,56563.0,56562.0,0.1826]
[1725540700446,0.092401,56563.0,56562.0,0.5434]
[1725540700645,0.088401,56563.0,56562.0,0.5434]
[1725540700846,0.084401,56563.0,56562.0,0.5434]
[1725540701650,0.086401,56563.0,56562.0,0.5474]
[1725540702560,0.535602,56563.0,56562.0,0.004]
[1725540702760,0.176818,56558.0,56557.0,0.0002651]
[1725540702953,0.851618,56558.0,56557.0,0.0002651]
[1725540703257,0.763209,56558.0,56557.0,0.0002651]
[1725540707956,0.402409,56558.0,56557.0,0.3610651]
[1725540708463,0.35817419,56558.0,56557.0,0.3610651]
[1725540712649,0.80738319,56558.0,56557.0,0.0002651]
[1725540712850,0.08842,56551.0,56550.0,0.3608]
[1725540713060,0.004,56551.0,56550.0,0.3608]
[1725540713250,0.40242,56551.0,56550.0,0.3608]
[1725540713451,0.088429,56545.0,56544.0,0.38295115]
[1725540713653,0.088431,56544.0,56543.0,0.36172]
[1725540713860,0.490862,56544.0,56543.0,0.3608]
[1725540714055,0.088438,56539.0,56538.0,0.36097892]
[1725540714363,0.402438,56539.0,56538.0,0.36097892]
[1725540714866,0.092438,56539.0,56538.0,0.36097892]
[1725540715265,0.004,56539.0,56538.0,0.44941892]
[1725540715765,0.002,56544.0,56538.0,0.36497892]
[1725540715958,0.002,56544.0,56543.0,0.3608]
[1725540716169,0.002,56544.0,56543.0,0.449232]
[1725540716369,0.001,56544.0,56543.0,0.449232]
[1725540717262,0.001,56544.0,56543.0,0.759232]
[1725540717460,0.001,56544.0,56543.0,1.889792]
[1725540718171,0.002,56544.0,56543.0,1.889792]
[1725540718865,0.0002651,56549.0,56548.0,0.088424]
[1725540719063,0.0002651,56549.0,56548.0,0.759224]
[1725540719258,0.0002651,56549.0,56548.0,1.889744]
[1725540720158,0.0012651,56549.0,56548.0,1.889744]
[1725540720866,0.0012651,56549.0,56548.0,1.89652175]
[1725540721369,0.0012651,56549.0,56548.0,1.94945743]
[1725540721671,0.088405,56561.0,56558.0,0.088408]
[1725540721872,0.088405,56561.0,56548.0,1.94904398]
[1725540721873,0.088405,56561.0,56557.0,0.3608]
[1725540722060,0.088401,56564.0,56561.0,0.088403]
[1725540722370,0.31,56571.0,56563.0,0.3608]
[1725540722572,0.0886521,56573.0,56570.0,0.3608]
[1725540722868,0.088388,56572.0,56570.0,0.3608]
[1725540723268,0.088388,56572.0,56570.0,0.44919]
[1725540723464,0.004,56571.0,56570.0,0.44919]
[1725540723971,0.088388,56572.0,56570.0,0.44919]
[1725540724170,0.001,56572.0,56571.0,0.090388]
[1725540724967,0.311,56572.0,56571.0,0.002]
[1725540725168,1.380894,56572.0,56571.0,0.002]
[1725540725370,2.175394,56572.0,56571.0,0.002]
[1725540725574,2.360994,56572.0,56571.0,0.002]
[1725540725969,2.359994,56572.0,56571.0,0.002]
[1725540726361,0.088399,56564.0,56563.0,0.3608]
[1725540726562,0.400399,56564.0,56563.0,0.3608]
[1725540726974,0.265206,56562.0,56561.0,1e-07]
[1725540727174,0.347206,56562.0,56561.0,1e-07]
[1725540727370,1.477606,56562.0,56561.0,1e-07]
[1725540727677,1.473606,56562.0,56561.0,1e-07]
[1725540727876,1.471606,56562.0,56561.0,1e-07]
[1725540728472,0.871606,56562.0,56561.0,1e-07]
[1725540728774,0.871606,56562.0,56547.0,0.3608]
[1725540728775,0.088424,56548.0,56547.0,0.3608]
[1725540728969,0.08843,56545.0,56543.0,0.1911]
[1725540729162,0.002,56544.0,56543.0,0.1911]
[1725540729366,0.088431,56544.0,56543.0,0.1911]
[1725540730266,0.085431,56544.0,56543.0,0.1941]
[1725540730671,0.395431,56544.0,56543.0,0.1941]
[1725540730967,0.396431,56544.0,56543.0,0.1941]
[1725540731265,0.397431,56544.0,56543.0,0.01]
[1725540732084,0.087431,56544.0,56543.0,0.01]
[1725540732569,0.397431,56544.0,56543.0,0.01]
[1725540733680,0.485862,56544.0,56543.0,0.01]
[1725540735468,0.485862,56544.0,56543.0,0.06252212]
[1725540736077,0.485862,56544.0,56543.0,0.01]
[1725540736382,0.485862,56544.0,56543.0,0.06252212]
[1725540737076,0.397431,56544.0,56543.0,0.06252212]
[1725540737276,0.087431,56544.0,56543.0,0.01]
[1725540738173,0.087431,56544.0,56543.0,0.08058832]
[1725540738884,0.397431,56544.0,56543.0,0.08058832]
[1725540739077,0.397431,56544.0,56543.0,0.01]
[1725540739285,0.397431,56544.0,56543.0,0.06282936]
[1725540739776,0.397431,56544.0,56543.0,0.01]
[1725540740578,0.397431,56544.0,56543.0,0.06282452]
[1725540740783,0.397431,56544.0,56543.0,0.01]
[1725540743082,0.485862,56544.0,56543.0,0.01]
[1725540744082,0.415862,56544.0,56543.0,0.01]
[1725540745083,0.327431,56544.0,56543.0,0.01]
[1725540745384,0.415862,56544.0,56543.0,0.01]
[1725540746288,0.327431,56544.0,56543.0,0.01]
[1725540746986,0.415862,56544.0,56543.0,0.01]
[1725540748882,0.327431,56544.0,56543.0,0.01]
[1725540749082,0.087431,56544.0,56543.0,0.01]
[1725540749477,0.327431,56544.0,56543.0,0.01]
[1725540751384,0.415862,56544.0,56543.0,0.01]
[1725540751591,0.638993,56544.0,56543.0,0.01]
[1725540752085,0.550562,56544.0,56543.0,0.01]
[1725540752286,0.549562,56544.0,56543.0,0.007]
[1725540752483,0.548562,56544.0,56543.0,0.004]
[1725540752791,0.549562,56544.0,56543.0,0.007]
[1725540753094,0.549562,56544.0,56543.0,0.003]
[1725540753392,0.175868,56542.0,56541.0,0.3608]
[1725540753591,0.177868,56542.0,56541.0,0.3608]
[1725540755389,0.093434,56542.0,56541.0,0.3608]
[1725540755597,0.006,56542.0,56541.0,0.3608]
[1725540756296,0.007,56542.0,56541.0,0.3608]
[1725540756689,0.007,56542.0,56541.0,0.449235]
[1725540757292,0.007,56542.0,56541.0,1.579835]
[1725540757593,0.002,56548.0,56547.0,0.088426]
[1725540757795,0.002,56548.0,56547.0,0.691226]
[1725540758385,0.002,56548.0,56547.0,1.221746]
[1725540758590,0.10507131,56551.0,56548.0,0.088424]
[1725540758794,0.10507131,56551.0,56548.0,0.361124]
[1725540759196,0.3286881,56549.0,56548.0,0.2727]
[1725540760400,0.3286881,56549.0,56548.0,0.1345]
[1725540760791,0.4181111,56549.0,56548.0,0.1345]
[1725540761093,0.3296881,56549.0,56548.0,0.002]
[1725540761800,0.3326881,56549.0,56548.0,0.002]
[1725540761996,0.339533,56549.0,56548.0,0.002]
[1725540762197,0.3326881,56549.0,56548.0,0.002]
[1725540762696,0.0926881,56549.0,56548.0,0.002]
[1725540762901,0.0042651,56549.0,56548.0,0.330424]
[1725540763090,0.0042651,56549.0,56548.0,0.090424]
[1725540763994,0.0042651,56549.0,56548.0,0.09717986]
[1725540764889,0.2442651,56549.0,56548.0,0.00875586]
[1725540765495,0.3326881,56549.0,56548.0,0.002]
[1725540766693,0.0926881,56549.0,56548.0,0.002]
[1725540767091,0.0042651,56549.0,56548.0,0.090424]
[1725540767700,0.0042651,56549.0,56548.0,0.330424]
[1725540768691,0.0926881,56549.0,56548.0,0.330424]
[1725540769093,0.0042651,56549.0,56548.0,0.330424]
[1725540769401,0.0042651,56549.0,56548.0,1.51393455]
[1725540769593,0.0042651,56549.0,56548.0,1.460944]
[1725540769900,0.0042651,56549.0,56548.0,1.51389515]
[1725540770099,0.08754499,56560.0,56559.0,0.088407]
[1725540770301,0.088398,56565.0,56563.0,0.088399]
[1725540770504,0.088398,56565.0,56564.0,0.3628]
[1725540770693,0.088398,56565.0,56564.0,0.3608]
[1725540771793,0.101398,56565.0,56564.0,0.3608]
[1725540772198,0.115398,56565.0,56564.0,0.3618]
[1725540774104,0.116398,56565.0,56564.0,0.3628]
[1725540774300,0.356398,56565.0,56564.0,0.3628]
[1725540774607,0.356398,56565.0,56564.0,0.002]
[1725540777602,0.444796,56565.0,56564.0,0.002]
[1725540778108,0.356398,56565.0,56564.0,0.002]
[1725540778594,0.116398,56565.0,56564.0,0.002]
[1725540779506,0.116398,56565.0,56564.0,0.242]
[1725540781104,0.22146931,56565.0,56564.0,0.3371772]
[1725540781309,0.116398,56565.0,56564.0,0.3371772]
[1725540782103,0.028,56565.0,56564.0,0.3371772]
[1725540782399,0.116398,56565.0,56564.0,0.3371772]
[1725540783313,0.116398,56565.0,56564.0,0.2487782]
[1725540783314,0.204796,56565.0,56564.0,0.2487782]
[1725540783496,0.444796,56565.0,56564.0,0.002]
[1725540784306,0.68153037,56565.0,56564.0,0.002]
[1725540784499,0.47894718,56565.0,56564.0,0.002]
[1725540784809,0.4789502,56565.0,56564.0,0.002]
[1725540785009,0.444796,56565.0,56564.0,0.002]
[1725540785207,0.47895019,56565.0,56564.0,0.002]